[Event "76th Montenegro Championship 2024"]
[Site "Podgorica"]
[Date "2024.02.07"]
[Round "2.13"]
[White "Krstonijevic, Stjepan"]
[Black "Djurovic, Peko"]
[Result "1/2-1/2"]
[ECO "B31"]
[WhiteElo "2108"]
[BlackElo "2332"]
[Annotator "TA"]
[PlyCount "52"]
[EventDate "2024.02.06"]
[EventType "swiss"]
[EventCountry "MNE"]
[SourceTitle "playchess.com"]
[Source "ChessBase"]
[SourceQuality "1"]
[TimeControl "40/5400+30:1800+30"]

{[%evp 27,52,27,25,0,4,4,18,0,0,0,0,0,35,35,497,477,464,0,0,0,0,0,0,0,0,0,0]} 1. e4 {[%emt 0:13:58]} c5 {[%emt 0:00:11]} 2. Nf3 {[%emt 0:00:04]} Nc6 {[%emt 0:00:10]} 3. Bb5 {[%emt 0:00:08]} g6 {[%emt 0:00:07]} 4. O-O {[%emt 0:00:32]} Bg7 {[%emt 0:00:07]} 5. Re1 {[%emt 0:00:44]} Nf6 {[%emt 0:00:08]} 6. e5 {[%emt 0:00:47]} Ng4 {[%emt 0:00:59]} 7. Bxc6 {[%emt 0:01:17]} dxc6 {[%emt 0:00:17]} 8. d3 {[%emt 0:00:22]} O-O {[%emt 0:00:12]} 9. Nc3 {[%emt 0:00:05]} b6 {[%emt 0:00:36]} 10. Bf4 {[%emt 0:00:20]} Nh6 {[%emt 0:00:42]} 11. Ne4 {[%emt 0:05:03]} Nf5 {[%emt 0:00:23]} 12. Qd2 {[%emt 0:06:20]} Nd4 {[%emt 0:05:27]} 13. Nxd4 {[%emt 0:00:40]} cxd4 {[%emt 0:00:02]} 14. Bh6 {[%emt 0:01:54]} c5 {[%emt 0:00:25]} 15. Qg5 {[%emt 0:02:36]} f6 {[%emt 1:28:14]} 16. Qh4 {[%emt 0:14:55]} Bb7 {[%emt 0:00:00]} 17. Re2 {[%emt 0:10:55]} Qd5 {[%emt 0:00:00] aiming for ...Bxh6.} 18. exf6 {[%emt 0:13:13]} exf6 {[%emt 0:00:00] ...f5 is the strong threat.} 19. f3 {[%emt 0:06:28] Bxg7 would now be deadly.} Bc6 {[%emt 0:00:00]} 20. Rae1 {[%emt 0:02:47] Black must now prevent Bxg7.} a5 $2 {[%emt 0:00:00][%mdl 8192]} (20... Rae8 $14) 21. Bxg7 $18 {[%emt 0:03:41]} Kxg7 {[%emt 0:00:00] [#]} 22. Nd6 $2 {[%emt 0:00:24]} Qxd6 $11 {[%emt 0:00:00] The position is equal.} 23. Re7+ {[%emt 0:00:09]} Rf7 {[%emt 0:00:00]} 24. Rxf7+ {[%emt 0:00:16]} Kxf7 {[%emt 0:00:00]} 25. Qxh7+ {[%emt 0:00:07]} Kf8 {[%emt 0:00:00]} 26. Qh6+ {[%emt 0:03:23]} Kf7 {[%emt 0:00:00] Weighted Error Value: White=0.37/Black=0.82.  Loses game:     	---       	Black=1      Missed win:     	White=1     	---        Inaccurate:     	---       	Black=1      OK:         	White=4     	Black=2      Best:        	White=1     	Black=2} 1/2-1/2

[Event "76th Montenegro Championship 2024"]
[Site "Podgorica"]
[Date "2024.02.07"]
[Round "2.14"]
[White "Nenezic, Danilo"]
[Black "Milovic, Ilija"]
[Result "1-0"]
[ECO "C00"]
[WhiteElo "2086"]
[BlackElo "1823"]
[Annotator "NA RC"]
[PlyCount "67"]
[EventDate "2024.02.06"]
[EventType "swiss"]
[EventCountry "MNE"]
[SourceTitle "playchess.com"]
[Source "ChessBase"]
[SourceQuality "1"]
[TimeControl "40/5400+30:1800+30"]

1. e4 {[%emt 0:00:54]} e6 {[%emt 0:03:23]} 2. d3 {[%emt 0:01:51]} d5 {[%emt 0:00:40]} 3. Nd2 {[%emt 0:00:58]} c5 {[%emt 0:00:41]} 4. g3 {[%emt 0:01:11]} Nc6 {[%emt 0:00:23]} 5. Bg2 {[%emt 0:00:20]} Nf6 {[%emt 0:00:22]} 6. Ngf3 {[%emt 0:00:15]} Be7 {[%emt 0:00:32]} 7. O-O {[%emt 0:00:23]} O-O {[%emt 0:00:13]} 8. Re1 {[%emt 0:00:30]} Qc7 {[%emt 0:00:53]} 9. c3 {[%emt 0:03:30]} b5 {[%emt 0:05:14]} 10. Nf1 {[%emt 0:02:40]} Bb7 {[%emt 0:03:49]} 11. e5 {[%emt 0:01:14]} Nd7 {[%emt 0:00:18]} 12. Bf4 {[%emt 0:00:50]} Rfc8 {[%emt 0:01:00]} 13. h4 {[%emt 0:01:16]} a5 {[%emt 0:05:07]} 14. h5 {[%emt 0:01:24]} h6 {[%emt 0:02:02]} 15. N1h2 {[%emt 0:00:47]} Qd8 {[%emt 0:03:56]} 16. Ng4 {[%emt 0:03:11]} Bf8 {[%emt 0:02:31]} 17. Bf1 {[%emt 0:03:47]} a4 {[%emt 0:02:00]} 18. Qd2 {[%emt 0:06:41]} a3 {[%emt 0:02:17]} 19. b3 {[%emt 0:01:38]} d4 {[%emt 0:05:45]} 20. c4 {[%emt 0:00:37]} Nb4 {[%emt 0:02:56]} 21. Nfh2 {[%emt 0:02:33]} bxc4 {[%emt 0:10:41]} 22. bxc4 {[%emt 0:00:23]} Bc6 {[%emt 0:01:43]} 23. Bg2 {[%emt 0:01:03]} Bxg2 {[%emt 0:01:40]} 24. Kxg2 {[%emt 0:00:10]} Qa5 {[%emt 0:04:14]} 25. Qe2 {[%emt 0:23:19]} Rcb8 {[%emt 0:08:10]} 26. Nxh6+ {[%emt 0:02:40]} gxh6 {[%emt 0:02:09]} 27. Ng4 {[%emt 0:00:26]} Bg7 {[%emt 0:21:53]} 28. Rh1 {[%emt 0:07:08]} Qc7 {[%emt 0:03:37]} 29. Bxh6 {[%emt 0:03:18]} Bxh6 {[%emt 0:01:28]} 30. Nxh6+ {[%emt 0:00:41]} Kg7 {[%emt 0:00:22]} 31. Ng4 {[%emt 0:01:18]} Rh8 {[%emt 0:00:25]} 32. Rae1 {[%emt 0:04:52]} Nc6 {[%emt 0:00:46]} 33. Qe4 {[%emt 0:01:51]} Ne7 {[%emt 0:00:55]} 34. h6+ {[%emt 0:00:23]} 1-0

[Event "76th Montenegro Championship 2024"]
[Site "Podgorica"]
[Date "2024.02.07"]
[Round "2.15"]
[White "Petrovic, Slavko"]
[Black "Skvortsova, Alena"]
[Result "0-1"]
[ECO "B33"]
[WhiteElo "1836"]
[BlackElo "2111"]
[Annotator "RC"]
[PlyCount "158"]
[EventDate "2024.02.06"]
[EventType "swiss"]
[EventCountry "MNE"]
[SourceTitle "playchess.com"]
[Source "ChessBase"]
[SourceQuality "1"]
[TimeControl "40/5400+30:1800+30"]

1. e4 {[%emt 0:05:03]} c5 {[%emt 0:00:05]} 2. Nf3 {[%emt 0:00:23]} Nc6 {[%emt 0:00:06]} 3. d4 {[%emt 0:00:30]} cxd4 {[%emt 0:00:10]} 4. Nxd4 {[%emt 0:00:24]} e5 {[%emt 0:00:08]} 5. Nb3 {[%emt 0:00:12]} Nf6 {[%emt 0:00:18]} 6. Bg5 {[%emt 0:01:51]} h6 {[%emt 0:02:20]} 7. Bxf6 {[%emt 0:00:41]} Qxf6 {[%emt 0:00:06]} 8. Nc3 {[%emt 0:00:15]} Bb4 {[%emt 0:02:29]} 9. Qd2 {[%emt 0:02:18]} O-O {[%emt 0:05:13]} 10. a3 {[%emt 0:00:22]} Bxc3 {[%emt 0:00:42]} 11. Qxc3 {[%emt 0:01:39]} Qg6 {[%emt 0:04:05]} 12. Qe3 {[%emt 0:01:54]} d5 {[%emt 0:15:52]} 13. exd5 {[%emt 0:05:51]} Nd4 {[%emt 0:02:18]} 14. Nxd4 {[%emt 0:03:12]} exd4 {[%emt 0:00:06]} 15. Qxd4 {[%emt 0:01:57]} Re8+ {[%emt 0:02:55]} 16. Kd1 {[%emt 0:04:46]} Bf5 {[%emt 0:10:27]} 17. Bd3 {[%emt 0:03:46]} Bxd3 {[%emt 0:10:28]} 18. cxd3 {[%emt 1:04:26]} Qxg2 {[%emt 0:41:42]} 19. Kd2 {[%emt 0:00:30]} Qg5+ {[%emt 0:00:00]} 20. Kc3 {[%emt 0:00:30]} Re2 {[%emt 0:00:00]} 21. Rhg1 {[%emt 0:00:00]} Qd2+ {[%emt 0:01:30]} 22. Kb3 {[%emt 0:00:00]} g6 {[%emt 0:00:30]} 23. Rac1 {[%emt 0:01:30]} Qa5 {[%emt 0:00:00]} 24. d6 {[%emt 0:00:30]} Rd8 {[%emt 0:01:00]} 25. Rc7 {[%emt 0:00:00]} Re6 {[%emt 0:00:30]} 26. Rxb7 {[%emt 0:01:00]} Rexd6 {[%emt 0:00:30]} 27. Qc4 {[%emt 0:00:00]} Qf5 {[%emt 0:00:00]} 28. Re1 {[%emt 0:01:00]} Rd4 {[%emt 0:01:00]} 29. Re8+ {[%emt 0:00:00]} Kg7 {[%emt 0:00:30]} 30. Rxd8 {[%emt 0:01:00]} Rxc4 {[%emt 0:00:30]} 31. Kxc4 {[%emt 0:00:30]} Qe6+ {[%emt 0:00:30]} 32. Kc5 {[%emt 0:00:00]} Qe5+ {[%emt 0:00:30]} 33. Rd5 {[%emt 0:00:00]} Qxh2 {[%emt 0:00:30]} 34. Rdd7 {[%emt 0:01:30]} Qxf2+ {[%emt 0:00:00]} 35. d4 {[%emt 0:00:00]} h5 {[%emt 0:00:00]} 36. Rd8 {[%emt 0:00:26]} h4 {[%emt 0:00:00]} 37. Rbb8 {[%emt 0:00:02]} h3 {[%emt 0:00:00]} 38. Rh8 {[%emt 0:00:43]} h2 {[%emt 0:00:00]} 39. Rbg8+ {[%emt 0:00:33]} Kf6 {[%emt 0:00:00]} 40. Rh7 {[%emt 0:00:00]} Qf5+ {[%emt 0:00:00]} 41. d5 {[%emt 0:09:52]} Qc2+ {[%emt 0:02:09]} 42. Kd6 {[%emt 0:00:56]} Qxb2 {[%emt 0:00:52]} 43. Rgh8 {[%emt 0:00:18]} Qxa3+ {[%emt 0:00:44]} 44. Kd7 {[%emt 0:00:45]} Qe7+ {[%emt 0:01:55]} 45. Kc6 {[%emt 0:00:11]} Ke5 {[%emt 0:01:28]} 46. Rxh2 {[%emt 0:00:46]} Qd6+ {[%emt 0:00:07]} 47. Kb7 {[%emt 0:01:22]} Qb6+ {[%emt 0:01:08]} 48. Kc8 {[%emt 0:00:22]} Kxd5 {[%emt 0:02:55]} 49. R8h7 {[%emt 0:01:22]} Qe6+ {[%emt 0:02:26]} 50. Kd8 {[%emt 0:00:40]} a5 {[%emt 0:07:14]} 51. Ra2 {[%emt 0:02:46]} Qb6+ {[%emt 0:03:46]} 52. Ke8 {[%emt 0:01:03]} f5 {[%emt 0:01:29]} 53. Re7 {[%emt 0:00:30]} g5 {[%emt 0:01:25]} 54. Ree2 {[%emt 0:03:03]} Qb4 {[%emt 0:04:06]} 55. Rab2 {[%emt 0:02:44]} g4 {[%emt 0:03:07]} 56. Kf7 {[%emt 0:03:51]} f4 {[%emt 0:00:45]} 57. Kf6 {[%emt 0:01:14]} f3 {[%emt 0:02:15]} 58. Re5+ {[%emt 0:00:46]} Kd4 {[%emt 0:00:29]} 59. Rxb4+ {[%emt 0:00:44]} axb4 {[%emt 0:00:03]} 60. Rf5 {[%emt 0:01:23]} b3 {[%emt 0:03:38]} 61. Rf4+ {[%emt 0:04:02]} Kc3 {[%emt 0:00:23]} 62. Rxg4 {[%emt 0:00:57]} b2 {[%emt 0:00:04]} 63. Rf4 {[%emt 0:00:48]} b1=Q {[%emt 0:00:06]} 64. Rxf3+ {[%emt 0:00:23]} Kd4 {[%emt 0:00:07]} 65. Rf5 {[%emt 0:00:55]} Qb6+ {[%emt 0:01:07]} 66. Kg7 {[%emt 0:00:51]} Ke4 {[%emt 0:00:11]} 67. Rf7 {[%emt 0:00:50]} Qc6 {[%emt 0:01:04]} 68. Re7+ {[%emt 0:00:11]} Kf5 {[%emt 0:00:11]} 69. Rf7+ {[%emt 0:00:02]} Kg5 {[%emt 0:00:14]} 70. Kg8 {[%emt 0:00:24]} Qe6 {[%emt 0:00:37]} 71. Kh8 {[%emt 0:00:36]} Qh6+ {[%emt 0:01:42]} 72. Kg8 {[%emt 0:00:20]} Qh5 {[%emt 0:00:10]} 73. Rg7+ {[%emt 0:00:30]} Kf6 {[%emt 0:00:12]} 74. Rg1 {[%emt 0:01:06]} Qe8+ {[%emt 0:00:11]} 75. Kh7 {[%emt 0:00:10]} Qd7+ {[%emt 0:00:02]} 76. Kg8 {[%emt 0:01:03]} Qc8+ {[%emt 0:00:04]} 77. Kh7 {[%emt 0:00:18]} Qc7+ {[%emt 0:00:02]} 78. Kg8 {[%emt 0:00:12]} Qb8+ {[%emt 0:00:05]} 79. Kh7 {[%emt 0:00:08]} Qa7+ {[%emt 0:00:08]} 0-1

[Event "76th Montenegro Championship 2024"]
[Site "Podgorica"]
[Date "2024.02.07"]
[Round "2.16"]
[White "Djukanovic, Sreten"]
[Black "Cadjenovic, Dragan"]
[Result "1-0"]
[ECO "A44"]
[WhiteElo "2068"]
[BlackElo "1809"]
[Annotator "NA RC"]
[PlyCount "50"]
[EventDate "2024.02.06"]
[EventType "swiss"]
[EventCountry "MNE"]
[SourceTitle "playchess.com"]
[Source "ChessBase"]
[SourceQuality "1"]
[TimeControl "40/5400+30:1800+30"]

1. d4 {[%emt 0:00:03]} c5 {[%emt 0:14:39]} 2. d5 {[%emt 0:00:12]} e5 {[%emt 0:00:15]} 3. e4 {[%emt 0:00:15]} d6 {[%emt 0:00:10]} 4. Bb5+ {[%emt 0:00:17]} Nd7 {[%emt 0:00:59]} 5. a4 {[%emt 0:00:07]} Ngf6 {[%emt 0:00:38]} 6. Nc3 {[%emt 0:00:36]} Be7 {[%emt 0:01:36]} 7. Nf3 {[%emt 0:00:34]} O-O {[%emt 0:00:46]} 8. O-O {[%emt 0:00:48]} a6 {[%emt 0:06:35]} 9. Be2 {[%emt 0:00:47]} Ne8 {[%emt 0:03:11]} 10. Nd2 {[%emt 0:01:01]} g6 {[%emt 0:03:00]} 11. Nc4 {[%emt 0:03:02]} Ng7 {[%emt 0:01:06]} 12. f4 {[%emt 0:04:06]} f5 {[%emt 0:03:29]} 13. a5 {[%emt 0:04:20]} Rb8 {[%emt 0:04:24]} 14. Ra3 {[%emt 0:03:19]} Qc7 {[%emt 0:08:12]} 15. exf5 {[%emt 0:10:36]} Nxf5 {[%emt 0:01:28]} 16. Ne4 {[%emt 0:09:33]} b5 {[%emt 0:04:26]} 17. axb6 {[%emt 0:01:29]} Nxb6 {[%emt 0:00:42]} 18. fxe5 {[%emt 0:01:32]} Nxc4 {[%emt 0:03:46]} 19. Bxc4 {[%emt 0:00:12]} Rb4 {[%emt 0:02:23]} 20. Qd3 {[%emt 0:02:01]} Rb6 {[%emt 0:06:28]} 21. g4 {[%emt 0:02:23]} Ng7 {[%emt 0:04:15]} 22. Rxf8+ {[%emt 0:01:43]} Bxf8 {[%emt 0:01:00]} 23. e6 {[%emt 0:01:13]} Ne8 {[%emt 0:02:16]} 24. Qf1 {[%emt 0:01:13]} Bg7 {[%emt 0:00:51]} 25. Rf3 {[%emt 0:00:33]} Nf6 {[%emt 0:26:25]} 1-0

[Event "76th Montenegro Championship 2024"]
[Site "Podgorica"]
[Date "2024.02.07"]
[Round "2.17"]
[White "Lekic, Pavle"]
[Black "Ratkovic, Milorad"]
[Result "1/2-1/2"]
[ECO "B40"]
[WhiteElo "1661"]
[BlackElo "2063"]
[Annotator "RC"]
[PlyCount "130"]
[EventDate "2024.02.06"]
[EventType "swiss"]
[EventCountry "MNE"]
[SourceTitle "playchess.com"]
[Source "ChessBase"]
[SourceQuality "1"]
[TimeControl "40/5400+30:1800+30"]

1. e4 {[%emt 0:09:46]} c5 {[%emt 0:00:12]} 2. d3 {[%emt 0:00:06]} e6 {[%emt 0:00:08]} 3. Nf3 {[%emt 0:00:23]} Nc6 {[%emt 1:31:40]} 4. g3 {[%emt 0:00:08]} Qc7 {[%emt 0:00:00]} 5. Bg2 {[%emt 0:00:40]} b6 {[%emt 0:00:00]} 6. O-O {[%emt 0:00:55]} Bb7 {[%emt 0:00:00]} 7. Nc3 {[%emt 0:08:50]} a6 {[%emt 0:00:00]} 8. Bf4 {[%emt 0:03:13]} d6 {[%emt 0:00:00]} 9. Re1 {[%emt 0:01:10]} O-O-O {[%emt 0:00:00]} 10. Qd2 {[%emt 0:14:20]} h6 {[%emt 0:00:00]} 11. h4 {[%emt 0:12:18]} Be7 {[%emt 0:00:00]} 12. a3 {[%emt 0:09:07]} Bf6 {[%emt 0:00:00]} 13. Rab1 {[%emt 0:04:27]} Nd4 {[%emt 0:00:00]} 14. Ne2 {[%emt 0:06:48]} e5 {[%emt 0:00:00]} 15. Be3 {[%emt 0:01:59]} Ne7 {[%emt 0:00:00]} 16. Bxd4 {[%emt 0:05:04]} exd4 {[%emt 0:00:00]} 17. c3 {[%emt 0:00:46]} dxc3 {[%emt 0:00:00]} 18. bxc3 {[%emt 0:00:31]} Nc6 {[%emt 0:00:00]} 19. Nf4 {[%emt 0:00:52]} Ne5 {[%emt 0:00:00]} 20. Qb2 {[%emt 0:09:42]} g5 {[%emt 0:00:00]} 21. Nxe5 {[%emt 0:03:39]} Bxe5 {[%emt 0:00:00]} 22. Bh3+ {[%emt 0:00:33]} Kb8 {[%emt 0:00:00]} 23. Nd5 {[%emt 0:00:12]} Bxd5 {[%emt 0:00:00]} 24. exd5 {[%emt 0:00:16]} Ka7 {[%emt 0:00:00]} 25. d4 {[%emt 0:01:08]} Bf6 {[%emt 0:00:00]} 26. Re3 {[%emt 0:02:39]} gxh4 {[%emt 0:00:00]} 27. Rf3 {[%emt 0:00:16]} Be7 {[%emt 0:00:00]} 28. Rxf7 {[%emt 0:00:36]} Rhe8 {[%emt 0:00:00]} 29. a4 {[%emt 0:02:01]} Rb8 {[%emt 0:00:00]} 30. Qe2 {[%emt 0:01:45]} Rb7 {[%emt 0:00:00]} 31. Bf1 {[%emt 0:01:16]} c4 {[%emt 0:00:00]} 32. Qxc4 {[%emt 0:00:27]} Qxc4 {[%emt 0:00:00]} 33. Bxc4 {[%emt 0:00:01]} Rc8 {[%emt 0:00:00]} 34. Re1 {[%emt 0:00:57]} Rcc7 {[%emt 0:00:00]} 35. gxh4 {[%emt 0:00:31]} Bxh4 {[%emt 0:00:00]} 36. Rxc7 {[%emt 0:00:24]} Rxc7 {[%emt 0:00:00]} 37. Re4 {[%emt 0:00:36]} Bxf2+ {[%emt 0:00:00]} 38. Kxf2 {[%emt 0:00:05]} Rxc4 {[%emt 0:00:00]} 39. Re6 {[%emt 0:00:51]} Rxc3 {[%emt 0:00:00]} 40. Rxh6 {[%emt 0:00:00]} Rc4 {[%emt 0:00:00]} 41. Ke3 {[%emt 0:06:41]} Rxa4 {[%emt 0:00:00]} 42. Rxd6 {[%emt 0:05:42]} Kb7 {[%emt 0:00:00]} 43. Rd7+ {[%emt 0:04:02]} Kc8 {[%emt 0:00:00]} 44. Rh7 {[%emt 0:00:15]} Ra1 {[%emt 0:00:00]} 45. Kf4 {[%emt 0:03:23]} Re1 {[%emt 0:00:00]} 46. Kf5 {[%emt 0:03:02]} a5 {[%emt 0:00:00]} 47. Ra7 {[%emt 0:05:11]} Kb8 {[%emt 0:00:00]} 48. Rh7 {[%emt 0:04:34]} a4 {[%emt 0:00:00]} 49. d6 {[%emt 0:01:24]} Re8 {[%emt 0:00:00]} 50. Re7 {[%emt 0:01:08]} Rd8 {[%emt 0:00:49]} 51. Ke6 {[%emt 0:00:43]} Rh8 {[%emt 0:02:19]} 52. Kd7 {[%emt 0:00:31]} Kb7 {[%emt 0:00:54]} 53. Ke6+ {[%emt 0:00:23]} Kc8 {[%emt 0:00:39]} 54. Ra7 {[%emt 0:00:26]} Rh6+ {[%emt 0:00:19]} 55. Kd5 {[%emt 0:00:31]} Kb8 {[%emt 0:04:33]} 56. Rxa4 {[%emt 0:00:35]} Kb7 {[%emt 0:00:17]} 57. Rc4 {[%emt 0:00:18]} Rh5+ {[%emt 0:00:18]} 58. Ke6 {[%emt 0:00:35]} Rh6+ {[%emt 0:00:08]} 59. Ke5 {[%emt 0:00:35]} Rh5+ {[%emt 0:00:09]} 60. Ke4 {[%emt 0:00:35]} Rh4+ {[%emt 0:00:25]} 61. Kd3 {[%emt 0:00:27]} Rh3+ {[%emt 0:01:52]} 62. Kc2 {[%emt 0:00:28]} Rh7 {[%emt 0:00:37]} 63. Kc3 {[%emt 0:00:34]} Rd7 {[%emt 0:00:10]} 64. Rc7+ {[%emt 0:00:31]} Rxc7+ {[%emt 0:00:20]} 65. dxc7 {[%emt 0:00:06]} Kxc7 {[%emt 0:00:01]} 1/2-1/2

[Event "76th Montenegro Championship 2024"]
[Site "Podgorica"]
[Date "2024.02.07"]
[Round "2.18"]
[White "Kandic, Milojko"]
[Black "Lakusic, Zoran"]
[Result "1-0"]
[ECO "B09"]
[WhiteElo "2046"]
[BlackElo "1650"]
[Annotator "NA RC"]
[PlyCount "77"]
[EventDate "2024.02.06"]
[EventType "swiss"]
[EventCountry "MNE"]
[SourceTitle "playchess.com"]
[Source "ChessBase"]
[SourceQuality "1"]
[TimeControl "40/5400+30:1800+30"]

1. e4 {[%emt 0:00:30]} d6 {[%emt 0:02:18]} 2. d4 {[%emt 0:00:46]} Nf6 {[%emt 0:00:36]} 3. Nc3 {[%emt 0:00:43]} g6 {[%emt 0:01:33]} 4. f4 {[%emt 0:00:59]} c6 {[%emt 0:03:52]} 5. a4 {[%emt 0:04:22]} a6 {[%emt 0:01:21]} 6. Nf3 {[%emt 0:02:40]} Bg4 {[%emt 0:02:02]} 7. h3 {[%emt 0:04:31]} Bxf3 {[%emt 0:02:41]} 8. Qxf3 {[%emt 0:00:06]} Qb6 {[%emt 0:00:58]} 9. e5 {[%emt 0:19:56]} Nfd7 {[%emt 0:07:01]} 10. a5 {[%emt 0:04:54]} Qc7 {[%emt 0:03:52]} 11. Bd3 {[%emt 0:01:40]} e6 {[%emt 0:02:16]} 12. O-O {[%emt 0:02:12]} c5 {[%emt 0:05:36]} 13. d5 {[%emt 0:06:47]} c4 {[%emt 0:14:54]} 14. Be2 {[%emt 0:07:21]} Nc5 {[%emt 0:06:38]} 15. Bxc4 {[%emt 0:03:34]} Nbd7 {[%emt 0:02:56]} 16. dxe6 {[%emt 0:12:22]} Nxe6 {[%emt 0:01:00]} 17. Bxe6 {[%emt 0:03:42]} fxe6 {[%emt 0:00:15]} 18. exd6 {[%emt 0:00:47]} Bxd6 {[%emt 0:00:30]} 19. Ne4 {[%emt 0:02:33]} Bb4 {[%emt 0:02:04]} 20. Qb3 {[%emt 0:04:08]} Bc5+ {[%emt 0:10:03]} 21. Kh1 {[%emt 0:02:20]} Qc6 {[%emt 0:04:18]} 22. Nxc5 {[%emt 0:01:53]} Nxc5 {[%emt 0:00:26]} 23. Qc3 {[%emt 0:01:09]} O-O {[%emt 0:02:42]} 24. b4 {[%emt 0:01:56]} Ne4 {[%emt 0:01:12]} 25. Qxc6 {[%emt 0:01:00]} bxc6 {[%emt 0:00:37]} 26. Re1 {[%emt 0:00:13]} Ng3+ {[%emt 0:02:32]} 27. Kh2 {[%emt 0:01:40]} Nf5 {[%emt 0:00:15]} 28. Bb2 {[%emt 0:03:23]} Kf7 {[%emt 0:00:59]} 29. Rad1 {[%emt 0:02:09]} Rad8 {[%emt 0:00:41]} 30. Be5 {[%emt 0:00:43]} Ke7 {[%emt 0:07:17]} 31. c4 {[%emt 0:03:24]} Rxd1 {[%emt 0:01:29]} 32. Rxd1 {[%emt 0:00:01]} Ke8 {[%emt 0:04:29]} 33. g4 {[%emt 0:01:03]} Ne3 {[%emt 0:00:58]} 34. Rd6 {[%emt 0:00:43]} Nxc4 {[%emt 0:00:58]} 35. Rxc6 {[%emt 0:00:13]} Nxe5 {[%emt 0:00:51]} 36. Rc8+ {[%emt 0:01:20]} Ke7 {[%emt 0:00:39]} 37. Rxf8 {[%emt 0:00:05]} Nxg4+ {[%emt 0:00:22]} 38. hxg4 {[%emt 0:00:03]} Kxf8 {[%emt 0:00:43]} 39. b5 {[%emt 0:00:14]} 1-0

[Event "76th Montenegro Championship 2024"]
[Site "Podgorica"]
[Date "2024.02.08"]
[Round "3.1"]
[White "Kadric, Denis"]
[Black "Vukcevic, Nemanja"]
[Result "1-0"]
[ECO "C41"]
[WhiteElo "2584"]
[BlackElo "2275"]
[Annotator "RC"]
[PlyCount "101"]
[EventDate "2024.02.06"]
[EventType "swiss"]
[EventCountry "MNE"]
[SourceTitle "playchess.com"]
[Source "ChessBase"]
[SourceQuality "1"]
[TimeControl "40/5400+30:1800+30"]

1. e4 {[%emt 0:00:05]} d6 {[%emt 0:00:32]} 2. d4 {[%emt 0:00:04]} Nf6 {[%emt 0:00:08]} 3. Nc3 {[%emt 0:00:04]} e5 {[%emt 0:00:04]} 4. Nf3 {[%emt 0:03:02]} Nbd7 {[%emt 0:00:15]} 5. Bc4 {[%emt 0:03:21]} Be7 {[%emt 0:00:13]} 6. a4 {[%emt 0:00:02]} O-O {[%emt 0:00:31]} 7. O-O {[%emt 0:00:03]} exd4 {[%emt 0:01:01]} 8. Nxd4 {[%emt 0:01:49]} Ne5 {[%emt 0:00:49]} 9. Ba2 {[%emt 0:00:55]} Nc6 {[%emt 0:01:35]} 10. Bf4 {[%emt 0:09:52]} Nb4 {[%emt 0:33:31]} 11. Bb3 {[%emt 0:00:08]} a6 {[%emt 0:00:32]} 12. Re1 {[%emt 0:05:08]} c5 {[%emt 0:06:31]} 13. Nf3 {[%emt 0:03:27]} Bg4 {[%emt 0:07:25]} 14. Rc1 {[%emt 0:07:42]} Qc8 {[%emt 0:10:01]} 15. Bc4 {[%emt 0:05:32]} Rd8 {[%emt 0:08:06]} 16. h3 {[%emt 0:00:08]} Be6 {[%emt 0:01:32]} 17. Nd5 {[%emt 0:01:21]} Bxd5 {[%emt 0:03:55]} 18. exd5 {[%emt 0:00:03]} b5 {[%emt 0:00:15]} 19. axb5 {[%emt 0:07:12]} axb5 {[%emt 0:00:09]} 20. Bxb5 {[%emt 0:00:02]} Nfxd5 {[%emt 0:01:49]} 21. Bg3 {[%emt 0:02:53]} Bf6 {[%emt 0:01:25]} 22. c3 {[%emt 0:03:46]} Nc7 {[%emt 0:00:37]} 23. Bf1 {[%emt 0:00:57]} Nbd5 {[%emt 0:03:00]} 24. Rc2 {[%emt 0:00:24]} Nb6 {[%emt 0:04:30]} 25. Nh2 {[%emt 0:02:30]} g6 {[%emt 0:05:32]} 26. Rd2 {[%emt 0:07:01]} d5 {[%emt 0:01:05]} 27. Qf3 {[%emt 0:05:27]} Bg5 {[%emt 0:01:39]} 28. Rde2 {[%emt 0:00:03]} Ne6 {[%emt 0:00:51]} 29. h4 {[%emt 0:00:39]} Bh6 {[%emt 0:00:46]} 30. Ng4 {[%emt 0:01:06]} Bg7 {[%emt 0:00:17]} 31. h5 {[%emt 0:00:59]} Ng5 {[%emt 0:00:59]} 32. Qf4 {[%emt 0:02:25]} Qf5 {[%emt 0:02:39]} 33. h6 {[%emt 0:05:05]} Bh8 {[%emt 0:00:58]} 34. Qxf5 {[%emt 0:04:57]} gxf5 {[%emt 0:00:01]} 35. Ne3 {[%emt 0:00:03]} f4 {[%emt 0:00:53]} 36. Bxf4 {[%emt 0:01:13]} Ne6 {[%emt 0:00:01]} 37. Bg3 {[%emt 0:00:42]} d4 {[%emt 0:00:02]} 38. cxd4 {[%emt 0:03:52]} Nxd4 {[%emt 0:03:39]} 39. Bc7 {[%emt 0:00:04]} Nxe2+ {[%emt 0:00:16]} 40. Bxe2 {[%emt 0:00:00]} Na4 {[%emt 0:00:00]} 41. Bxd8 {[%emt 0:01:16]} Rxd8 {[%emt 0:03:14]} 42. b3 {[%emt 0:00:02]} Nc3 {[%emt 0:01:25]} 43. Bc4 {[%emt 0:00:28]} Kf8 {[%emt 0:05:04]} 44. Nf5 {[%emt 0:02:53]} Bf6 {[%emt 0:00:36]} 45. g3 {[%emt 0:01:05]} Rd2 {[%emt 0:00:40]} 46. Re3 {[%emt 0:00:47]} Nd1 {[%emt 0:02:53]} 47. Re2 {[%emt 0:02:54]} Rd7 {[%emt 0:02:13]} 48. Ra2 {[%emt 0:03:38]} Nb2 {[%emt 0:02:59]} 49. Ra8+ {[%emt 0:00:56]} Bd8 {[%emt 0:00:16]} 50. Rc8 {[%emt 0:01:02]} Nd3 {[%emt 0:01:38]} 51. Kf1 {[%emt 0:00:27]} 1-0